Cogmind - Beta 10.1 @@@ ROGUE MODE // 2020.10.28 @ 14:15:28 Player: Atherys Result: Self-destructed Performance ------------- Evolutions (1) 500 Regions Visited (2) 400 Robots Destroyed (13) 65 Value Destroyed (419) 419 Prototype IDs (1) 20 Alien Tech Used (0) 0 Bonus (0) 0 TOTAL SCORE: 1404 Bonus ------- None Cogmind --------- Core Integrity 194/400 Matter 215/300 Energy 100/100 System Corruption 0% Temperature Cool (0) Movement Core (600) Ox11 Location -9/Materials Parts ------- > --- POWER (2) -------- (None) > --- PROPULSION (3) --- (None) > --- UTILITY (2) ------ High-capacity Storage Unit > --- WEAPON (2) ------- Improved Assault Rifle > --- INVENTORY (12) --- Datajack Peak State ------------ > --- POWER ------------ (None) > --- PROPULSION ------- Wheel Wheel > --- UTILITY ---------- High-capacity Storage Unit > --- WEAPON ----------- Improved Assault Rifle Improved Assault Rifle > --- INVENTORY -------- Datajack [Rating: 9] Favorites ----------- Power None Propulsion Wheel Wheel Wheel Utility High-capacity Storage Unit Storage High-capacity Storage Unit Weapon Assault Rifle Energy Gun Medium Laser Ballistic Gun Assault Rifle Special Melee Weapon Datajack Build | -11 -10 -9 ------- Run | Scr Mat Mat Slots Evolved 2 | . . 2 Power 1 | . . 1 Propulsion 1 | . . 1 Utility . | . . . Weapon . | . . . Parts Attached 11 | 5 3 3 Power . | . . . Engine . | . . . Core . | . . . Reactor . | . . . Propulsion 3 | 2 1 . Treads . | . . . Leg . | . . . Wheel 3 | 2 1 . Hover . | . . . Flight . | . . . Utility 2 | 1 1 . Device . | . . . Storage 2 | 1 1 . Processor . | . . . Hackware . | . . . Protection . | . . . Artifact . | . . . Weapon 6 | 2 1 3 Energy Gun 2 | 1 1 . Energy Cannon . | . . . Ballistic Gun 3 | 1 . 2 Ballistic Cannon . | . . . Launcher . | . . . Special Weapon . | . . . Impact Weapon . | . . . Slashing Weapon . | . . . Piercing Weapon . | . . . Special Melee Weapon 1 | . . 1 Unidentified Prototypes 1 | . . 1 Parts Lost 3 | . . 3 Power . | . . . Propulsion 2 | . . 2 Utility . | . . . Weapon 1 | . . 1 Highest Loss Streak 3 | . . 3 Average Slot Usage (%) 56 | . 71 42 Wheel 20 | . 28 13 Storage 12 | . 14 11 Energy Gun 7 | . 14 1 Ballistic Gun 14 | . 14 15 Naked Turns . | . . . Heaviest Build 38 | 8 37 38 Greatest Support 26 | 26 26 20 Greatest Overweight (x) 12 | . 1 12 Average Overweight (x) 1 | . . 1 Largest Inventory Capacity 14 | 6 14 12 Average Capacity 11 | 5 11 12 Most Carried 1 | . 1 1 Average Carried . | . . . Final Capacity 12 | 6 12 12 Final Carried 1 | . . 1 Class Distribution -------------------- 100% | Mutant Dominant Class ---------------- Mutant | -10/Materials Mutant | -9/Materials Resources | -11 -10 -9 ----------- Run | Scr Mat Mat Matter Collected 349 | 44 249 56 Remotely . | . . . Salvage Created 505 | . 249 256 Parts 35 | . 16 19 Haulers Intercepted . | . . . Recyclers Shooed . | . . . Parts Field Recycled . | . . . Retrieved Matter . | . . . Parts Self-Destructed . | . . . Prevented . | . . . Kills | -11 -10 -9 ------- Run | Scr Mat Mat Combat Hostiles Destroyed 12 | . 6 6 Guns 12 | . 6 6 Classes Destroyed 4 | . 1 3 Worker 1 | . . 1 Swarmer 2 | . . 2 Grunt 8 | . 6 2 Sentry 2 | . . 2 Best Kill Streak 6 | . 4 6 Combat Bots Only 4 | . 4 3 Max Kills in Single Turn 1 | . 1 1 Gunslinging . | . . . Exploded . | . . . Melee . | . . . Uniques/NPCs Destroyed . | . . . Combat | -11 -10 -9 -------- Run | Scr Mat Mat Damage Taken 722 | . 190 532 Core 265 | . 59 206 Absorbed by Shields . | . . . Core Remaining (%) 88 | 100 76 . Volleys Fired 38 | . 16 22 Largest 2 | . 2 2 Hottest 85 | . 85 46 Shots Fired 67 | . 32 35 Gun 67 | . 32 35 Cannon . | . . . Launcher . | . . . Special . | . . . Kinetic 51 | . 16 35 Thermal 16 | . 16 . Explosive . | . . . Electromagnetic . | . . . Robot Hit Streak 10 | . 7 10 Robot Miss Streak 2 | . 2 1 Penetration Max . | . . . Secondary Targets . | . . . Shots Hit Robots 48 | . 21 27 Core Hits 22 | . 11 11 Critical Hits . | . . . Critical Kills . | . . . Critical Parts Destroyed . | . . . Melee Attacks . | . . . Impact . | . . . Slashing . | . . . Piercing . | . . . Sneak Attacks . | . . . Combat Hostiles . | . . . Follow-up Attacks . | . . . Damage Inflicted 668 | . 277 391 Guns 630 | . 239 391 Cannons . | . . . Explosions . | . . . Melee . | . . . Ramming 38 | . 38 . Kinetic 474 | . 83 391 Thermal 156 | . 156 . Explosive . | . . . Electromagnetic . | . . . Impact . | . . . Slashing . | . . . Piercing . | . . . Highest Corruption . | . . . Average Corruption . | . . . Corruption Purged . | . . . Overload Shots . | . . . Overflow Damage . | . . . Projectiles . | . . . Explosions . | . . . Melee . | . . . Knockbacks . | . . . Impact . | . . . Kinetic . | . . . Secondary . | . . . Self-Inflicted Damage 17 | . 17 . Shots . | . . . Rammed 4 | . 4 . Targets Rammed 4 | . 4 . Kicked . | . . . Crushed . | . . . Highest Temperature 120 | . 120 2 Average Temperature 41 | . 42 2 Received Heat Transfer 273 | . 90 183 Siege Activations . | . . . Robots Corrupted . | . . . Combat Hostiles . | . . . Parts Fried . | . . . Impact Corruptions . | . . . Robots Melted . | . . . Combat Hostiles . | . . . Parts Melted . | . . . Heat Transferred 407 | . 407 . Parts Sabotaged . | . . . Parts Stolen . | . . . Parts Stripped . | . . . Power Chain Reactions . | . . . Missiles Intercepted . | . . . Alert | -11 -10 -9 ------- Run | Scr Mat Mat Peak Influence 238 | . 155 238 Initial 65 | . . 65 Average 89 | . 59 133 Maximum Alert Level 1 | . . 1 Low Security (%) 89 | 100 100 76 Level 1 10 | . . 23 Level 2 . | . . . Level 3 . | . . . Level 4 . | . . . Level 5 . | . . . High Security . | . . . Max Security . | . . . Squads Dispatched 2 | . 1 1 Investigation . | . . . Extermination . | . . . Reinforcement 2 | . 1 1 Assault . | . . . Garrison . | . . . Intercept . | . . . Construction Impeded 1 | . . 1 Haulers Reinforced . | . . . Stealth | -11 -10 -9 --------- Run | Scr Mat Mat Distress Signals 1 | . 1 . Communications Jammed . | . . . Distress Signals . | . . . Times Spotted 16 | . 7 9 Peak Tracking Total 6 | . 6 4 Tactical Retreats 1 | . . 1 Traps | -11 -10 -9 ------- Run | Scr Mat Mat Traps Triggered . | . . . Indirectly . | . . . Trap Hack Attempts . | . . . Triggered . | . . . Disarmed . | . . . Reprogrammed . | . . . Reused . | . . . Traps Extracted . | . . . Installed . | . . . Triggered . | . . . Machines | -11 -10 -9 ---------- Run | Scr Mat Mat Machines Disabled 1 | . . 1 Max in Single Turn 1 | . . 1 Machines Sabotaged . | . . . Garrisons Compromised . | . . . Overloaded Fab Kills . | . . . Fab Network Shutdowns . | . . . Hacking | -11 -10 -9 --------- Run | Scr Mat Mat Machines Accessed 2 | . 1 1 Terminals 2 | . 1 1 Fabricators . | . . . Repair Stations . | . . . Recycling Units . | . . . Scanalyzers . | . . . Garrison Access . | . . . Total Hacks 6 | . 3 3 Successful 5 | . 2 3 Failed 1 | . 1 . Catastrophic . | . . . Database Lockouts . | . . . Manual 6 | . 3 3 Terminals 6 | . 3 3 Fabricators . | . . . Repair Stations . | . . . Recycling Units . | . . . Scanalyzers . | . . . Garrison Access . | . . . Terminal Hacks . | . . . Fabricator Hacks . | . . . Repair Station Hacks . | . . . Recycling Unit Hacks . | . . . Scanalyzer . | . . . Garrison Access Hacks . | . . . Unauthorized Hacks 5 | . 2 3 Terminals 5 | . 2 3 Track 1 | . . 1 Assimilate 1 | . 1 . Botnet 2 | . 1 1 Operators 1 | . . 1 Fabricators . | . . . Repair Stations . | . . . Recycling Units . | . . . Scanalyzers . | . . . Garrison Access . | . . . Data Cores Recovered . | . . . Used . | . . . Hacking Detections 2 | . 1 1 Full Trace Events . | . . . Feedback Events . | . . . Feedback Blocked . | . . . Robot Schematics Acquired . | . . . Robots Built . | . . . Matter . | . . . Time . | . . . Total Robot Build Rating . | . . . Part Schematics Acquired . | . . . Parts Built . | . . . Matter . | . . . Time . | . . . Total Part Build Rating . | . . . Parts Repaired . | . . . Time . | . . . Parts Recycled . | . . . Recycled Matter . | . . . Retrieved Matter . | . . . Retrieved Components . | . . . Parts Scanalyzed . | . . . Part Schematics Acquired . | . . . Parts Damaged . | . . . Bothacking | -11 -10 -9 ------------ Run | Scr Mat Mat Used RIF Installer . | . . . Robots Hacked . | . . . Non-combat . | . . . Combat . | . . . Robot Hacks Applied . | . . . Relay Couplers Released . | . . . Robots Rewired . | . . . Allies Hacked . | . . . Hacks Repelled . | . . . Allies | -11 -10 -9 -------- Run | Scr Mat Mat Total Allies . | . . . Largest Group . | . . . Highest-Rated Group . | . . . Highest-Rated Ally . | . . . Total Orders . | . . . Ally Attacks . | . . . Total Damage . | . . . Kills . | . . . Allies Corrupted . | . . . Allies Melted . | . . . Intel | -11 -10 -9 ------- Run | Scr Mat Mat Robot Analysis Total . | . . . Derelict Logs Recovered . | . . . Drone Launches . | . . . Drone Recoveries . | . . . Exploration | -11 -10 -9 ------------- Run | Scr Mat Mat Turns Passed 417 | 30 197 190 Spaces Moved 211 | 24 114 73 Core 7 | 1 . 6 Treads . | . . . Legs . | . . . Wheels 204 | 23 114 67 Hover . | . . . Flight . | . . . Fastest Speed 50 | 50 90 90 Average Speed 106 | 90 93 132 Slowest Speed 650 | 100 100 650 Overloaded Moves . | . . . Propulsion Burnouts . | . . . Robots Hopped . | . . . Cave-ins Triggered . | . . . Exploration Rate (%) 15 | 3 29 13 Regions Visited 2 Branch Regions . Pre-discovered Areas . | . . . Known Exits Taken . | . . . Unknown Exits Taken 2 | 1 1 . Scrap Searched . | . . . Spaces Dug . | . . . Terrain Destroyed . | . . . Melee . | . . . Projectile . | . . . AOE . | . . . Terrain Rammed . | . . . Walls Destroyed . | . . . Machines Disabled . | . . . Actions | -11 -10 -9 --------- Run | Scr Mat Mat Total 331 | 29 171 131 Wait 62 | 1 32 29 Move 209 | 23 113 73 Hop . | . . . Pick Up 1 | . . 1 Fast Attach 8 | 5 1 2 Attach . | . . . Detach 1 | . . 1 Swap 3 | . 2 1 Drop 5 | . 3 2 Fire 38 | . 16 22 Melee . | . . . Ram 4 | . 4 . Kick . | . . . Crush . | . . . Escape Stasis . | . . . Rewire . | . . . Trap . | . . . Miscellaneous . | . . . Route ------- -11/Scrapyard -10/Materials -9/Materials History --------- Turn | Location | Event 13 | -11/Scrapyard | Discovered new exit (range 15) 31 | -11/Scrapyard | Entered Materials 214 | -10/Materials | Discovered new exit (range 9) 228 | -10/Materials | Entered another Materials area 228 | -9/Materials | Evolved 2 slots: Power x1, Propulsion x1 305 | -9/Materials | Build established: Mutant 400 | -9/Materials | Lost 3 parts (2n1w) 406 | -9/Materials | Core integrity fell below 50% 418 | -9/Materials | Self-destructed Last Messages --------------- 00358_ S-10 Pest unfolds itself. 00358_ R-06 Scavenger collects Sml. Laser. 00361_ K-01 Serf collects debris. 00361_ K-01 Serf destroyed. 00362_ S-10 Pest destroyed. 00369_ Imp. Assault Rifle destroyed. 00370_ G-47 Trooper destroyed. 00374_ S-10 Pest destroyed. 00380_ Destroyed Flight Unit. 00384_ S-10 Pest destroyed. 00387_ ALERT: Construction progress impeded, dispatching reinforcements to local area. 00393_ U-05 Engineer lays Concrete. 00403_ R-06 Scavenger collects Hvy. Assault Rifle. 00406_ R-06 Scavenger collects Med. Matter Pod. 00409_ U-05 Engineer builds a Door. 00411_ R-06 Scavenger collects Heat Sink. 00414_ R-06 Scavenger collects Aluminum Leg. 00414_ R-06 Scavenger collects Flight Unit. 00418_ R-06 Scavenger collects Wheel. Map ----- +----------------------------------------------------+ | ! + + #??????????????????????????? | | ! # # #??????????????????????????? | | a # # #??????????????????????????? | | ##### #####+#########??????????????????????????? | | #### #### ###??##########????????????????????? | | #### #????????????????????? | | + #????????????????????? | | #### #????????????????????? | | ### ########??# #????????????????????? | | #?###+######??????# [ #????????????????????? | | u??# #??????# [ #????????????????????? | | ???# ! T #??????# #????????????????????? | | ???# #??????# #????????????????????? | | ???#] #??????# #????????????????????? | | ???# #??????#####+####????????????????????? | | ???# """"" #????????# ########## #????????? | | ???# """"" #????????# *%==[% #????????? | | ???# """"" #????????# %[ #????????? | | ???# #????????# / %* #????????? | | ???##########????????# #############?????????? | | ?????????????????????### r#?????????????????????? | | ???????????????????????# r#?????????????????????? | | ???????????????????????# #?????????????????????? | | ???????????????????????# #?????????????????????? | | ???????????????????????# #?????????????????????? | | ???????????????????????# @ #?????????????????????? | | ???????????????????????#% #?????????????????????? | | ?????????????????????? r #?????????????????????? | | ????????????????????? %g/?????????????????????? | | ????????????????????####%= # ????????????????????? | | ???????????????????????#u ###???????????????????? | | ???????????????????????#% #?????????????????????? | | ???????????????????????# ?????????????????????? | | ???????????????????????# ?????????????????????? | | ??????????????????????? ?????????????????????? | | ???????????????????????## ###????????????????????? | | ?????????????????????????+#??????????????????????? | | ????????????????????????? ???????????????????????? | | ????????????????????????? ???????????????????????? | | ?????????????o??????????? ???????????????????????? | | ?????????????????????????????????????????????????? | | ?????????????????????????????????????????????????? | | ?????????????????????????????????????????????????? | | ?????????????????????????????????????????????????? | | ?????????????????????????????????????????????????? | | ?????????????????????????????????????????????????? | | ?????????????????????????????????????????????????? | | ?????????????????????????????????????????????????? | | ?????????????????????????????????????????????????? | | ?????????????????????????????????????????????????? | +----------------------------------------------------+ Best States ------------- Heat Dissipation 28 Energy Generation 5 Energy Capacity 100 Matter Stores 293 Matter Capacity 300 Sight Range 16 Terrain Scan Density 10 Evasion (%) 42 Item Schematics ----------------- None Robot Schematics ------------------ None Fabricated ------------ Nothing Alien Tech Used ----------------- None Achievements -------------- None Challenges ------------ None Game ------ Seed GammaShrapnelComputer Manual? 0 Play Time 00:07:00 Cumulative 21.2 hours Start 2020.10.28 @ 14:10:37 End 2020.10.28 @ 14:15:28 Sessions 1 Manual Loads 0 Difficulty Rogue Special Mode None Game No. 42 Rogue 42 Adventurer 0 Explorer 0 Win Type - Total 0 Types 0/0/0/0/0/0/0/0/0 Lore% 20 Gallery% 25 Achievement% 23 Wizard Run 0 Options --------- ASCII 0 Keyboard 0 Movement Mouse Keybinds 0 Fullscreen 2 Font 24/Smallcaps Map View 76x50 Tactical HUD 1 Map Filters NONE Filters NONE Steam X RUN: 05843439-097b-47d9-81b5-634f14ff0c24